bitfinex-derivatives/quotes_ETHF0:USTF0_20240920
["timestamp","ask_amount","ask_price","bid_price","bid_amount"]
[1726831200337,0.80475,2550.9,2550.6,3.06]
[1726831200537,0.80475,2550.9,2550.8,0.39197]
[1726831200933,0.80477,2550.9,2550.6,3.06]
[1726831201130,0.80477,2550.9,2550.8,3.06]
[1726831201339,0.4128,2550.9,2550.8,3.45197]
[1726831201535,0.3888,2551.3,2551.2,0.39191]
[1726831201830,0.4105,2551.5,2551.2,6.98]
[1726831202034,0.80237,2551.5,2551.4,3.06]
[1726831203643,0.39188,2551.4,2551.3,3.4454]
[1726831204642,0.39188,2551.4,2551.3,3.83729]
[1726831205038,0.80237,2551.5,2551.4,0.39188]
[1726831205232,0.80237,2551.5,2551.3,3.83728]
[1726831205432,0.80237,2551.5,2551.4,3.06]
[1726831209834,0.39187,2551.5,2551.4,3.06]
[1726831211434,0.39187,2551.5,2551.4,3.45188]
[1726831211630,0.39187,2551.5,2551.4,3.06]
[1726831212840,0.39187,2551.5,2551.4,3.45188]
[1726831213036,1.18126,2551.6,2551.4,3.45188]
[1726831213345,3.2078,2551.7,2551.6,0.39185]
[1726831213640,3.2078,2551.7,2551.6,3.45185]
[1726831215135,3.59963,2551.7,2551.6,3.45185]
[1726831215336,3.2078,2551.7,2551.6,3.45185]
[1726831215729,3.59963,2551.7,2551.6,3.45185]
[1726831216039,3.2078,2551.7,2551.6,3.45185]
[1726831216634,3.2078,2551.7,2551.6,7.37105]
[1726831217645,3.59963,2551.7,2551.6,7.37105]
[1726831217946,4.18741,2551.7,2551.3,3.4454]
[1726831218133,0.8046,2551.6,2551.3,3.4454]
[1726831218334,0.39188,2551.4,2551.3,3.83728]
[1726831218738,0.77697,2551.5,2551.4,0.39188]
[1726831219139,0.3851,2551.5,2551.4,0.39188]
[1726831219340,0.3851,2551.5,2551.4,3.45188]
[1726831220148,0.77696,2551.5,2551.4,3.45188]
[1726831221139,0.3851,2551.5,2551.4,3.45188]
[1726831221940,0.77696,2551.5,2551.4,3.45188]
[1726831222944,0.3851,2551.5,2551.4,3.45188]
[1726831223140,0.77696,2551.5,2551.4,3.45188]
[1726831223342,0.3851,2551.5,2551.4,3.45188]
[1726831224549,0.77696,2551.5,2551.4,3.45188]
[1726831225139,3.2078,2551.7,2551.4,3.06]
[1726831225339,3.2078,2551.7,2551.6,3.45185]
[1726831226439,3.59963,2551.7,2551.6,3.45185]
[1726831226644,4.39693,2551.7,2551.6,3.45185]
[1726831227749,4.39693,2551.7,2551.6,0.39185]
[1726831228151,0.39185,2551.6,2551.5,3.45186]
[1726831228746,4.39695,2551.7,2551.6,0.39185]
[1726831229748,3.2078,2551.7,2551.6,3.45185]
[1726831229950,3.2078,2551.7,2551.6,3.83125]
[1726831234250,3.59963,2551.7,2551.6,3.45185]
[1726831234555,3.2078,2551.7,2551.6,3.45185]
[1726831236852,3.2078,2551.7,2551.6,4.43148]
[1726831237353,3.2078,2551.7,2551.6,3.45185]
[1726831239446,3.59963,2551.7,2551.6,3.45185]
[1726831240258,3.2078,2551.7,2551.6,3.45185]
[1726831240465,3.59963,2551.7,2551.6,3.45185]
[1726831240650,3.2078,2551.7,2551.6,3.45185]
[1726831240851,3.59963,2551.7,2551.6,3.45185]
[1726831241450,3.2078,2551.7,2551.6,3.45185]
[1726831242058,3.2078,2551.7,2551.6,4.43148]
[1726831243857,0.412,2551.8,2551.7,0.39183]
[1726831244360,0.412,2551.8,2551.7,0.76863]
[1726831246457,0.412,2551.8,2551.7,1.74822]
[1726831248355,4.37949,2552.0,2551.9,0.3918]
[1726831248562,4.37949,2552.0,2551.9,3.4518]
[1726831249567,3.9877,2552.0,2551.9,3.4518]
[1726831249767,4.37949,2552.0,2551.9,3.4518]
[1726831250761,3.9877,2552.0,2551.9,3.4518]
[1726831251665,4.37949,2552.0,2551.9,3.4518]
[1726831252576,3.9877,2552.0,2551.9,3.4518]
[1726831256769,3.2078,2552.0,2551.9,5.45426503]
[1726831256971,3.2078,2552.0,2551.9,5.41082]
[1726831257169,3.2078,2552.0,2551.9,6.43377503]
[1726831257378,3.2078,2552.0,2551.9,10.35217503]
[1726831257565,0.401,2552.2,2552.1,1.3712]
[1726831257871,0.7892,2552.3,2552.2,1.37116]
[1726831258173,0.7892,2552.3,2552.1,4.0394]
[1726831258174,0.3742,2552.4,2552.3,1.3711]
[1726831258364,0.3742,2552.4,2552.3,4.4311]
[1726831259667,0.3742,2552.4,2552.3,3.45174]
[1726831260670,1.35353,2552.4,2552.0,3.06]
[1726831260870,0.7918,2552.3,2552.0,3.06]
[1726831261071,3.2078,2552.1,2552.0,3.06]
[1726831261872,3.59957,2552.1,2552.0,3.06]
[1726831262188,4.18723,2552.1,2551.8,3.06]
[1726831262367,0.3918,2551.9,2551.8,3.06]
[1726831262772,1.1836,2551.9,2551.8,3.45182]
[1726831263374,0.7918,2551.9,2551.8,3.45182]
[1726831265376,0.7918,2551.9,2551.8,3.06]
[1726831265578,0.7918,2551.9,2551.8,3.45182]
[1726831266972,1.1836,2551.9,2551.8,3.45182]
[1726831267780,1.1836,2551.9,2551.8,3.06]
[1726831268666,1.1836,2551.9,2551.8,3.45182]
[1726831271983,0.39184,2551.7,2551.6,0.39184]
[1726831273485,0.39185,2551.6,2551.5,0.39186]
[1726831273686,0.39186,2551.5,2551.4,0.39188]
[1726831273878,4.38868,2551.5,2551.3,1.02295503]
[1726831274085,3.9968,2551.5,2551.3,3.45189]
[1726831274280,4.38867,2551.5,2551.4,0.39188]
[1726831274688,4.38867,2551.5,2551.3,3.45188]
[1726831274988,0.39188,2551.4,2551.3,3.06]
[1726831276681,0.39189,2551.3,2551.2,0.3919]
[1726831276886,0.39192,2551.1,2551.0,1.41488503]
[1726831277091,0.39192,2551.1,2551.0,0.39193]
[1726831277586,0.39192,2551.1,2550.9,3.83675]
[1726831277587,0.39194,2551.0,2550.9,3.83675]
[1726831277789,1.17043,2551.1,2550.9,3.4448]
[1726831277999,0.39194,2551.0,2550.9,3.83674]
[1726831279697,0.39194,2551.0,2550.9,3.4448]
[1726831279893,0.39195,2550.9,2550.8,2.02525389]
[1726831280099,0.39195,2550.9,2550.8,0.39196]
[1726831280298,1.75833,2551.1,2550.8,0.39197]
[1726831280490,0.39196,2550.9,2550.8,0.39197]
[1726831280796,0.39196,2550.9,2550.7,6.6506]
[1726831280797,0.39195,2551.0,2550.9,0.39195]
[1726831280995,0.39194,2551.0,2550.9,3.45195]
[1726831281298,1.17044,2551.1,2551.0,0.39194]
[1726831281488,0.7785,2551.1,2551.0,0.39194]
[1726831281690,0.7785,2551.1,2551.0,0.80504]
[1726831281892,1.17043,2551.1,2551.0,0.39194]
[1726831282195,0.39194,2551.0,2550.9,3.45194]
[1726831282383,0.7785,2551.1,2550.7,4.87715503]
[1726831282590,0.39194,2551.0,2550.9,0.39195]
[1726831283389,0.39199,2550.7,2550.6,0.39198]
[1726831283595,0.39198,2550.8,2550.7,0.39197]
[1726831283792,0.76718,2550.8,2550.7,0.39197]
[1726831286795,0.392,2550.7,2550.6,0.39199]
[1726831286995,0.392,2550.6,2550.5,0.4114]
[1726831287207,0.98009,2550.4,2550.1,7.258]
[1726831287402,0.98009,2550.4,2549.9,1.53443254]
[1726831287403,5.36823,2550.3,2549.9,3.4557]
[1726831287700,0.39209,2550.0,2549.9,3.8478]
[1726831288402,0.39207,2550.2,2550.1,0.39206]
[1726831288892,4.78015,2550.3,2550.2,0.39206]
[1726831289387,0.39206,2550.2,2550.1,3.45207]
[1726831289592,0.39206,2550.2,2550.1,3.06]
[1726831289792,0.39208,2550.1,2550.0,0.39208]
[1726831291993,0.39207,2550.2,2550.1,0.39206]
[1726831292199,4.78016,2550.3,2550.2,0.39206]
[1726831292600,8.70096,2550.3,2550.2,0.39206]
[1726831293009,0.39207,2550.2,2550.1,0.39207]
[1726831294208,0.39208,2550.1,2550.0,0.39208]
[1726831294511,0.39209,2550.0,2549.9,0.3921]
[1726831295195,0.39209,2550.0,2549.8,0.39212]
[1726831295196,0.39212,2549.9,2549.8,0.39212]
[1726831295407,0.77232,2549.9,2549.8,0.39212]
[1726831295603,0.77232,2549.9,2549.7,0.39213]
[1726831295604,0.39212,2549.8,2549.7,0.39213]
[1726831297206,1.58612,2549.9,2549.7,0.39213]
[1726831297207,1.194,2549.9,2549.8,0.39212]
[1726831297407,3.2078,2550.3,2549.7,4.04036]
[1726831297611,3.2078,2550.3,2550.2,0.39206]
[1726831297807,0.39207,2550.2,2550.1,0.39207]
[1726831298602,3.59986,2550.3,2550.0,3.449]
[1726831298806,3.59986,2550.3,2550.1,0.39207]
[1726831299201,3.59986,2550.3,2550.2,0.39206]
[1726831299719,3.59986,2550.3,2550.1,0.39207]
[1726831301003,3.2078,2550.3,2550.1,0.39207]
[1726831301206,3.2078,2550.3,2550.0,3.84108]
[1726831301207,0.39207,2550.2,2550.0,3.84108]
[1726831301417,0.39207,2550.2,2550.0,0.78108]
[1726831301919,0.39207,2550.2,2550.1,0.39208]
[1726831302106,3.59986,2550.3,2550.1,0.39208]
[1726831302510,3.2078,2550.3,2550.2,0.39206]
[1726831302719,3.2078,2550.6,2550.2,3.06]
[1726831302909,3.2078,2550.6,2550.4,3.06]
[1726831303111,3.2078,2550.6,2550.5,0.79332]
[1726831303612,3.2078,2550.6,2550.5,4.71412]
[1726831303819,3.2078,2550.9,2550.7,0.39197]
[1726831304120,3.2078,2550.9,2550.5,4.3221]
[1726831304121,3.59976,2550.9,2550.8,3.06]
[1726831304817,0.39199,2550.7,2550.6,3.45199]
[1726831305319,0.98001,2550.6,2550.3,0.39204]
[1726831305511,3.9208,2550.7,2550.1,0.79337]
[1726831305512,4.18789,2550.4,2550.1,0.79337]
[1726831305815,1.21266,2550.3,2550.2,0.39206]
[1726831306013,1.58746,2550.3,2550.2,0.39206]
[1726831306417,0.39206,2550.2,2550.1,0.79336]
[1726831307518,0.39206,2550.2,2550.0,3.06]
[1726831307519,0.39208,2550.1,2550.0,0.39209]
[1726831307712,3.59988,2550.1,2550.0,0.39209]
[1726831318728,3.59988,2550.1,2549.7,1.38545]
[1726831318729,0.39214,2549.8,2549.7,0.39212]
[1726831318929,3.59994,2549.8,2549.7,0.39212]
[1726831319228,3.59994,2549.8,2549.5,0.39217]
[1726831319229,0.39215,2549.6,2549.5,0.39217]
[1726831319730,1.15975,2549.7,2549.6,0.39215]
[1726831320328,0.7676,2549.7,2549.6,0.39215]
[1726831320735,3.2078,2549.8,2549.7,0.39214]
[1726831320928,3.2078,2549.8,2549.7,3.45214]
[1726831321123,3.2078,2549.8,2549.7,3.82814]
[1726831321324,0.80511,2549.9,2549.8,0.39212]
[1726831322036,0.413,2549.9,2549.8,0.39212]
[1726831322332,0.80511,2549.9,2549.8,0.39212]
[1726831323831,0.413,2549.9,2549.8,0.39212]
[1726831324232,0.7676,2550.0,2549.9,0.39211]
[1726831325542,3.2078,2550.1,2550.0,1.37233]
[1726831325728,3.2078,2550.1,2550.0,1.78053]
[1726831325931,3.2078,2550.1,2550.0,6.68237]
[1726831326433,1.62943,2550.5,2550.4,0.39203]
[1726831327342,0.39204,2550.4,2550.3,0.39204]
[1726831327544,3.59984,2550.4,2550.3,0.39204]
[1726831328938,0.39206,2550.2,2550.1,0.78087]
[1726831329140,0.39207,2550.2,2550.1,0.39207]
[1726831329541,4.1879,2550.4,2550.0,0.4082]
[1726831329833,0.39207,2550.2,2550.1,0.39207]
[1726831331545,3.59985,2550.4,2550.3,0.39205]
[1726831331842,3.59983,2550.4,2550.3,0.39205]
[1726831332342,3.2078,2550.4,2550.3,0.39205]
[1726831333239,3.59983,2550.4,2550.3,0.39205]
[1726831333838,0.39205,2550.3,2550.2,0.39205]
[1726831334341,3.2078,2550.4,2550.0,0.4082]
[1726831334545,0.39205,2550.3,2550.2,0.39205]
[1726831334733,3.59984,2550.4,2550.3,0.39205]
[1726831335738,0.39211,2550.0,2549.9,0.3921]
[1726831335931,0.39211,2550.0,2549.6,2.00334503]
[1726831335932,0.39212,2549.9,2549.8,0.3921]
[1726831336127,0.39212,2549.8,2549.7,0.79523]
[1726831336336,0.39216,2549.7,2549.3,2.00346503]
[1726831336642,0.8081,2549.6,2549.5,0.39217]
[1726831336846,1.20026,2549.6,2549.5,0.39217]
[1726831337345,0.8081,2549.6,2549.5,0.39217]
[1726831338138,1.20025,2549.6,2549.5,0.39217]
[1726831339444,0.39217,2549.5,2549.4,1.02295503]
[1726831339740,3.59998,2549.5,2549.4,0.39219]
[1726831340243,3.2078,2549.5,2549.4,0.39219]
[1726831341443,3.59997,2549.5,2549.4,0.39219]
[1726831341944,3.2078,2549.5,2549.4,0.39219]
[1726831342135,3.59997,2549.5,2549.4,0.39219]
[1726831343234,0.3922,2549.4,2549.3,0.3922]
[1726831343636,0.7683,2549.4,2549.3,0.3922]
[1726831347941,0.76829,2549.4,2549.3,0.3922]
[1726831348746,0.3761,2549.4,2549.3,0.3922]
[1726831349051,0.76829,2549.4,2549.3,0.3922]
[1726831349752,0.3922,2549.3,2549.2,0.7698]
[1726831350460,0.3922,2549.3,2549.2,0.39222]
[1726831350643,4.90292,2549.3,2549.0,1.02295503]
[1726831350850,0.39226,2549.0,2548.9,0.39225]
[1726831351250,0.4108,2549.0,2548.7,1.79545503]
[1726831351546,0.80306,2549.0,2548.9,0.39226]
[1726831352244,0.80305,2549.0,2548.9,0.39226]
[1726831357165,0.39228,2548.8,2548.5,1.02295503]
[1726831357374,0.39232,2548.6,2548.5,0.39231]
[1726831357865,0.79772,2548.6,2548.5,0.39231]
[1726831358167,0.39233,2548.5,2548.4,0.39232]
[1726831359260,0.39234,2548.4,2548.3,0.79184]
[1726831360261,0.39236,2548.3,2548.0,5.5812]
[1726831360567,0.39236,2548.3,2548.2,0.39235]
[1726831360568,0.415,2548.3,2548.2,0.39235]
[1726831362474,0.80735,2548.3,2548.0,0.7831]
[1726831362674,0.80735,2548.3,2548.2,0.39237]
[1726831362876,0.80735,2548.3,2548.0,0.7831]
[1726831362877,3.475,2548.3,2548.0,0.3809]
[1726831363071,3.475,2548.3,2548.0,0.39239]
[1726831363276,3.45239,2548.1,2547.8,0.3927]
[1726831363473,0.382,2548.0,2547.9,0.39242]
[1726831365381,0.382,2548.0,2547.8,0.3927]
[1726831365674,0.39244,2547.8,2547.7,0.39244]
[1726831365862,1.35616,2547.9,2547.6,0.407]
[1726831366067,0.39244,2547.8,2547.7,0.39245]
[1726831366270,0.98113,2547.7,2547.1,3.2078]
[1726831366470,3.06,2547.5,2547.2,0.39252]
[1726831366670,0.39251,2547.3,2547.2,0.39252]
[1726831366875,0.39251,2547.3,2547.1,0.395]
[1726831366876,3.06,2547.3,2546.9,0.407]
[1726831367066,3.45252,2547.3,2547.1,0.39254]
[1726831367666,3.45252,2547.3,2547.1,0.39253]
[1726831368076,3.993,2547.4,2546.9,0.407]
[1726831368270,0.7852,2547.4,2546.9,0.407]
[1726831368476,4.38549,2547.4,2547.2,0.39252]
[1726831368682,3.993,2547.4,2546.9,1.38842]
[1726831368875,4.3855,2547.4,2547.2,0.39252]
[1726831370077,3.993,2547.4,2547.3,0.39251]
[1726831370280,4.3855,2547.4,2547.2,0.39251]
[1726831370679,3.993,2547.4,2547.2,0.39252]
[1726831371078,4.38549,2547.4,2547.2,0.39251]
[1726831371380,4.38549,2547.4,2547.3,0.39251]
[1726831371381,3.993,2547.4,2547.3,0.39251]
[1726831371582,3.993,2547.4,2547.2,0.39252]
[1726831372465,3.993,2547.4,2546.9,1.38841]
[1726831372466,3.993,2547.4,2547.3,0.39251]
[1726831374279,0.7852,2547.4,2547.3,0.39251]
[1726831374781,6.2678,2547.7,2547.5,0.39247]
[1726831374977,6.66025,2547.7,2547.5,0.39247]
[1726831375277,6.2678,2547.7,2547.5,0.39247]
[1726831378074,6.66025,2547.7,2547.5,0.39247]
[1726831379188,6.2678,2547.7,2547.5,0.39247]
[1726831379681,3.2078,2547.7,2547.5,0.39247]
[1726831379869,3.2078,2547.7,2547.6,0.39246]
[1726831383888,1.2172,2547.9,2547.8,0.39243]
[1726831384186,3.2078,2548.3,2548.1,0.39237]
[1726831384388,4.3956,2548.3,2547.9,0.3991]
[1726831384592,4.3956,2548.3,2548.2,0.39237]
[1726831384787,0.7844,2548.3,2548.2,0.39237]
[1726831384989,3.2078,2548.7,2548.2,0.98093]
[1726831385289,0.408,2548.6,2548.5,0.39231]
[1726831385484,3.5842,2548.7,2548.6,0.39231]
[1726831385986,3.5842,2548.7,2548.5,0.39231]
[1726831386185,3.5842,2548.7,2548.6,0.39231]
[1726831386583,3.5842,2548.7,2548.4,0.3855]
[1726831386783,3.5842,2548.7,2548.6,0.39231]
[1726831387991,3.5842,2548.7,2548.4,0.3855]
[1726831388387,3.5842,2548.7,2548.6,0.39231]
[1726831388588,3.5842,2548.7,2548.4,0.3855]
[1726831388886,3.5842,2548.7,2548.5,0.39232]
[1726831389086,3.5842,2548.7,2548.4,0.3855]
[1726831389286,3.5842,2548.7,2548.6,0.39231]
[1726831390800,3.5842,2548.7,2548.5,0.39232]
[1726831390991,3.06,2548.6,2548.5,0.39232]
[1726831392092,3.5842,2548.7,2548.3,0.98089]
[1726831392291,3.5842,2548.7,2548.6,0.39231]
[1726831392591,4.84769015,2563.2,2548.5,4.0408]
[1726831392592,3.2078,2549.0,2548.5,4.0408]
[1726831392792,3.2078,2549.0,2548.9,0.39226]
[1726831393795,0.4071,2549.5,2549.4,0.39219]
[1726831394993,0.4071,2549.5,2549.3,0.3922]
[1726831394994,3.6149,2549.5,2549.3,0.3922]
[1726831395193,3.06,2549.4,2549.2,0.39221]
[1726831395894,6.9824,2549.4,2548.8,0.7854]
[1726831396094,3.06,2549.1,2549.0,0.39225]
[1726831396493,3.4624,2549.1,2549.0,0.39225]
[1726831398201,3.8597,2549.1,2549.0,0.39225]
[1726831403188,3.8597,2549.1,2548.6,7.8051]
[1726831403189,7.7829,2549.1,2548.6,4.198]
[1726831403399,3.60009,2548.8,2548.6,4.5903]
[1726831403602,1.19449,2548.7,2548.6,0.3923]
[1726831403798,0.8022,2548.7,2548.6,0.3923]
[1726831403999,1.19449,2548.7,2548.6,0.3923]
[1726831404202,0.8022,2548.7,2548.6,0.3923]
[1726831416599,0.8022,2548.7,2548.6,1.37308]
[1726831416819,0.8022,2548.7,2548.6,0.3923]
[1726831417616,0.8022,2548.7,2548.4,0.3896]
[1726831417810,0.3915,2548.6,2548.5,0.39231]
[1726831420415,0.78381,2548.6,2548.5,0.39231]
[1726831420603,0.3915,2548.6,2548.5,0.39231]
[1726831420803,3.2078,2548.9,2548.8,0.39228]
[1726831421308,7.131,2548.9,2548.8,0.39228]
[1726831421511,7.52326,2548.9,2548.8,0.39228]
[1726831422005,7.131,2548.9,2548.8,0.39228]
[1726831422208,3.2078,2548.9,2548.8,0.39228]
[1726831422510,3.60006,2548.9,2548.8,0.39228]
[1726831422909,7.52326,2548.9,2548.8,0.39228]
[1726831423218,10.58327,2548.9,2548.8,0.39228]
[1726831424225,10.58327,2548.9,2548.6,0.98078]
[1726831424226,6.66007,2548.9,2548.6,0.98078]
[1726831424414,3.9232,2548.8,2548.1,0.3787]
[1726831424721,6.66018,2548.2,2547.8,1.02295503]
[1726831424916,6.66018,2548.2,2548.0,0.39239]
[1726831424917,1.2137,2548.1,2548.0,0.39239]
[1726831427013,1.2137,2548.1,2547.8,0.3787]
[1726831427216,1.2137,2548.1,2547.8,1.40165503]
[1726831427622,1.2137,2548.1,2547.9,0.39242]
[1726831428011,0.39242,2547.9,2547.8,1.02295503]
[1726831428219,0.39242,2547.9,2547.4,0.77469]
[1726831428220,0.39247,2547.6,2547.4,0.77469]
[1726831428519,0.8231,2547.5,2547.4,0.3822]
[1726831428719,0.8231,2547.5,2547.2,1.02295503]
[1726831428720,0.3925,2547.4,2547.2,1.02295503]
[1726831429027,0.3925,2547.4,2547.1,1.79768503]
[1726831429321,3.45251,2547.4,2547.1,0.77473]
[1726831429714,3.06,2547.4,2547.2,0.39252]
[1726831429915,3.45249,2547.4,2547.2,0.39252]
[1726831430116,3.45249,2547.4,2547.1,0.77473]
[1726831431126,3.45249,2547.4,2547.1,0.3822]
[1726831431127,0.39251,2547.3,2547.1,0.3822]
[1726831431829,0.39251,2547.3,2547.1,0.77474]
[1726831432214,3.60031,2547.3,2547.0,0.39254]
[1726831432525,3.45255,2547.1,2546.8,0.80297]
[1726831432828,0.4113,2547.0,2546.8,0.80297]
[1726831433423,0.4113,2547.0,2546.9,0.39257]
[1726831433724,0.4113,2547.0,2546.8,0.80298]
[1726831434915,0.80386,2547.0,2546.8,0.80298]
[1726831435318,0.4113,2547.0,2546.8,0.80298]
[1726831435520,0.4113,2547.0,2546.8,0.4104]
[1726831435718,0.4113,2547.0,2546.8,0.80298]
[1726831435926,0.4113,2547.0,2546.9,0.39257]
[1726831436323,0.4113,2547.0,2546.8,0.80298]
[1726831437227,0.4113,2547.0,2546.9,0.39257]
[1726831438721,7.24909,2547.3,2546.9,0.39256]
[1726831438922,0.39254,2547.1,2546.9,0.39256]
[1726831439528,0.39255,2547.1,2546.9,0.39257]
[1726831439721,0.80245,2547.1,2546.9,0.39257]
[1726831439935,0.4099,2547.1,2547.0,0.39255]
[1726831440124,0.4099,2547.1,2546.8,0.4104]
[1726831440328,0.4099,2547.1,2547.0,0.39255]
[1726831441028,0.3876,2547.2,2547.1,0.39254]
[1726831441228,3.2078,2547.6,2547.1,4.04135]
[1726831441428,4.04102,2548.0,2547.5,0.39248]
[1726831441429,1.55846,2547.7,2547.5,0.39248]
[1726831441930,1.55846,2547.7,2547.2,2.16231]
[1726831441931,6.2678,2547.9,2547.2,1.181]
[1726831442128,0.39246,2547.7,2547.5,0.39247]
[1726831442332,1.55844,2547.8,2547.6,0.39246]
[1726831442727,1.166,2547.8,2547.7,0.39245]
[1726831445331,1.55843,2547.8,2547.7,0.39245]
[1726831445627,1.166,2547.8,2547.7,0.39245]
[1726831446732,1.55843,2547.8,2547.3,0.98126]
[1726831447145,1.55843,2547.8,2547.7,0.39245]
[1726831447647,1.166,2547.8,2547.7,0.39245]
[1726831449747,1.55843,2547.8,2547.7,0.39245]
[1726831449942,1.166,2547.8,2547.7,0.39245]
[1726831452449,3.2078,2547.9,2547.7,3.9248]
[1726831452650,0.98083,2548.5,2548.3,0.39235]
[1726831452651,1.1784,2548.4,2548.3,0.39235]
[1726831453154,0.39238,2548.2,2548.1,0.39238]
[1726831453350,3.60018,2548.2,2547.8,0.98108]
[1726831453653,3.60018,2548.2,2547.7,8.1975]
[1726831453654,3.2078,2548.0,2547.7,4.9917]
[1726831453856,0.7833,2547.9,2547.8,0.39242]
[1726831454157,1.1585,2547.9,2547.8,0.39242]
[1726831455559,3.2078,2548.0,2547.9,0.39242]
[1726831456359,1.57196,2548.3,2548.1,0.39237]
[1726831456566,0.39237,2548.2,2548.1,0.39237]
[1726831456862,1.1796,2548.3,2547.8,1.36888]
[1726831456863,1.1796,2548.3,2548.2,0.39237]
[1726831457453,5.1036,2548.3,2548.2,0.39237]
[1726831457657,1.1796,2548.3,2548.2,0.39237]
[1726831458262,1.1796,2548.3,2547.8,1.36888]
[1726831458263,1.57196,2548.3,2548.1,0.39237]
[1726831458562,1.1796,2548.3,2548.2,0.39237]
[1726831460657,1.1796,2548.3,2548.1,0.3896]
[1726831460860,1.57196,2548.3,2548.1,0.39237]
[1726831461059,4.63196,2548.3,2548.1,0.39237]
[1726831461358,4.63196,2548.3,2547.8,1.75848]
[1726831461565,4.63196,2548.3,2547.9,0.98105]
[1726831461759,4.63196,2548.3,2547.8,1.75848]
[1726831461964,4.63196,2548.3,2548.2,0.39237]
[1726831470474,1.57196,2548.3,2548.2,0.39237]
[1726831471165,1.57196,2548.3,2548.1,0.39237]
[1726831471166,0.39238,2548.2,2548.1,0.39237]
[1726831471871,0.3924,2548.0,2547.9,0.3924]
[1726831472873,0.39242,2547.9,2547.8,0.39242]
[1726831473064,1.59172,2547.9,2547.8,0.39242]
[1726831473366,1.1993,2547.9,2547.8,0.39242]
[1726831473769,1.59172,2547.9,2547.8,0.39242]
[1726831473969,1.1993,2547.9,2547.8,0.39242]
[1726831475086,1.59172,2547.9,2547.8,0.39242]
[1726831475672,1.1993,2547.9,2547.8,0.39242]
[1726831475975,1.59172,2547.9,2547.8,0.39242]
[1726831477373,1.1993,2547.9,2547.5,2.00415503]
[1726831477581,3.2078,2547.8,2547.5,0.98119]
[1726831477872,3.60023,2547.8,2547.7,0.39245]
[1726831479367,3.2078,2547.8,2547.7,0.39245]
[1726831480273,3.60024,2547.8,2547.7,0.39245]
[1726831481275,3.2078,2547.8,2547.7,0.39245]
[1726831481672,3.2078,2547.8,2547.7,0.78055]
[1726831481972,3.60023,2547.8,2547.7,0.78055]
[1726831482177,3.60023,2547.8,2547.6,0.39246]
[1726831482178,0.39245,2547.7,2547.6,0.39246]
[1726831482380,7.96593,2547.7,2547.4,2.94987757]
[1726831482678,0.39249,2547.5,2547.4,0.39249]
[1726831483170,1.15849,2547.5,2547.4,0.39249]
[1726831483376,1.54519,2547.5,2547.4,0.39249]
[1726831486073,1.54519,2547.5,2547.4,0.39249]
[1726831486279,1.54519,2547.5,2547.4,1.41544503]
[1726831486466,1.54519,2547.5,2547.4,0.39249]
[1726831490880,1.1527,2547.5,2547.4,0.39249]
[1726831491073,1.1527,2547.5,2547.4,0.77039]
[1726831491378,1.54518,2547.5,2547.4,0.77039]
[1726831492891,1.1527,2547.5,2547.4,0.77039]
[1726831494267,1.54518,2547.5,2547.4,0.77039]
[1726831495084,1.54518,2547.5,2547.4,0.39249]
[1726831495283,4.75298,2547.5,2547.4,0.39249]
[1726831495484,0.98132,2547.2,2547.0,1.02295503]
[1726831495675,4.5817,2547.1,2547.0,1.02295503]
[1726831495877,0.39255,2547.0,2546.9,1.82802503]
[1726831496282,0.39255,2547.0,2546.9,0.80507]
[1726831496787,4.80504,2547.1,2547.0,0.39255]
[1726831499185,4.80504,2547.1,2546.9,0.4125]
[1726831499186,0.39255,2547.0,2546.9,0.39256]
[1726831500581,0.39259,2546.9,2546.6,1.02295503]
[1726831500781,0.39262,2546.6,2546.5,0.39263]
[1726831500984,4.6178,2546.8,2546.4,1.40535503]
[1726831500985,1.80261,2546.7,2546.6,0.3926]
[1726831501183,2.99601,2546.7,2546.6,0.3926]
[1726831502287,0.39262,2546.6,2546.5,0.39262]
[1726831503092,1.80263,2546.6,2546.4,0.77504]
[1726831503288,1.80263,2546.6,2546.4,0.39264]
[1726831503978,1.41,2546.6,2546.4,0.39264]
[1726831504183,1.41,2546.6,2546.2,0.79767]
[1726831504184,3.2078,2546.5,2546.2,0.79767]
[1726831504387,0.39266,2546.3,2546.2,0.79767]
[1726831504581,0.39268,2546.2,2546.1,0.39268]
[1726831504884,1.2051,2546.2,2546.1,0.39268]
[1726831505886,7.4829,2546.2,2545.9,0.4133]
[1726831506080,0.39271,2546.0,2545.9,0.4133]
[1726831507982,0.39271,2546.0,2545.9,0.80602]
[1726831508590,0.39271,2546.0,2545.9,0.39272]
[1726831508889,0.39272,2546.0,2545.9,0.39272]
[1726831510288,0.39275,2545.8,2545.7,0.39275]
[1726831510494,0.39276,2545.7,2545.6,0.77246]
[1726831510684,1.2063,2545.7,2545.4,0.7962]
[1726831510998,3.46279,2545.5,2545.2,0.4018]
[1726831511195,0.3928,2545.4,2545.2,0.4018]
[1726831511386,6.2778,2545.5,2545.2,0.39282]
[1726831511387,3.07,2545.3,2545.2,0.39282]
[1726831511603,0.3949,2545.3,2545.2,0.39282]
[1726831512285,6.67059,2545.5,2545.3,0.39281]
[1726831512998,0.3928,2545.4,2545.2,0.39282]
[1726831513393,6.2778,2545.5,2545.3,0.3928]
[1726831513588,3.2078,2545.5,2545.0,0.4034]